lending/lending_fUSD_20250114
["ID","MTS","AMOUNT","RATE_DAILY","PERIOD"]
[348940522,1736881835097,-500.0,0.00010543,2]
[348940524,1736881835107,-500.0,0.00010543,2]
[348940526,1736881835118,-536.21,0.00010543,2]
[348940528,1736881835128,-500.0,0.00010543,2]
[348940530,1736881835139,-500.0,0.00010543,2]
[348940532,1736881835150,-500.0,0.00010543,2]
[348940534,1736881835160,-500.0,0.00010543,2]
[348940536,1736881835170,-500.0,0.00010543,2]
[348940539,1736881835180,-500.0,0.00010543,2]
[348940541,1736881835191,-500.0,0.00010543,2]
[348940543,1736881835203,-500.0,0.00010543,2]
[348940545,1736881835214,-500.0,0.00010543,2]
[348940547,1736881835224,-500.0,0.00010543,2]
[348940549,1736881835235,-500.0,0.00010543,2]
[348940551,1736881835245,-500.0,0.00010543,2]
[348940553,1736881835255,-500.0,0.00010543,2]
[348940555,1736881835266,-500.0,0.00010543,2]
[348940557,1736881835277,-500.0,0.00010543,2]
[348940560,1736881835287,-540.04061884,0.00010543,2]
[348940562,1736881835298,-500.0,0.00010543,2]
[348940564,1736881835308,-500.0,0.00010543,2]
[348940566,1736881835319,-500.0,0.00010543,2]
[348940568,1736881835329,-500.0,0.00010543,2]
[348940570,1736881835340,-500.0,0.00010543,2]
[348940605,1736881835669,-500.0,0.00010543,2]
[348940607,1736881835686,-500.0,0.00010543,2]
[348940609,1736881835696,-500.0,0.00010543,2]
[348940611,1736881835705,-500.0,0.00010543,2]
[348940613,1736881835714,-500.0,0.00010543,2]
[348940615,1736881835724,-501.54181198,0.00010543,2]
[348940616,1736881835732,-501.26107137,0.00010543,2]
[348940617,1736881835742,-500.0,0.00010543,2]
[348940619,1736881835752,-504.20988867,0.00010543,2]
[348940621,1736881835761,-500.0,0.00010543,2]
[348940623,1736881835770,-501.17744824,0.00010543,2]
[348940625,1736881835779,-503.34519273,0.00010543,2]
[348940627,1736881835789,-500.0,0.00010543,2]
[348940629,1736881835799,-500.0,0.00010543,2]
[348940631,1736881835808,-500.0,0.00010543,2]
[348940633,1736881835818,-500.0,0.00010543,2]
[348940635,1736881835827,-500.0,0.00010543,2]
[348940637,1736881835836,-534.6,0.00010543,2]
[348940639,1736881835845,-500.0,0.00010543,2]
[348940641,1736881835854,-500.0,0.00010543,2]
[348940643,1736881835863,-500.0,0.00010543,2]
[348940645,1736881835873,-500.0,0.00010543,2]
[348940647,1736881835882,-500.0,0.00010543,2]
[348940649,1736881835892,-500.0,0.00010543,2]
[348940650,1736881835901,-505.59846249,0.00010543,2]
[348940651,1736881835910,-500.0,0.00010543,2]
[348940652,1736881835920,-500.0,0.00010543,2]
[348940653,1736881835929,-500.0,0.00010543,2]
[348940654,1736881835939,-500.0,0.00010543,2]
[348940655,1736881835948,-516.04,0.00010543,2]
[348940656,1736881835958,-500.0,0.00010543,2]
[348940657,1736881835967,-500.0,0.00010543,2]
[348940658,1736881835977,-502.50354954,0.00010543,2]
[348940659,1736881835986,-500.0,0.00010543,2]
[348940660,1736881835996,-500.0,0.00010543,2]
[348940661,1736881836006,-399.75935695,0.00010543,2]
[348940662,1736881836015,-503.8695343,0.00010543,2]
[348940663,1736881836025,-500.0,0.00010543,2]
[348940664,1736881836034,-504.38567085,0.00010543,2]
[348940665,1736881836044,-500.0,0.00010543,2]
[348940666,1736881836054,-500.0,0.00010543,2]
[348940667,1736881836063,-500.0,0.00010543,2]
[348940668,1736881836072,-522.96,0.00010543,2]
[348940669,1736881836082,-500.0,0.00010543,2]
[348940670,1736881836091,-507.10031861,0.00010543,2]
[348940671,1736881836101,-502.22329701,0.00010543,2]
[348940672,1736881836111,-2718.52,0.00010543,2]
[348940673,1736881836122,-500.0,0.00010543,2]
[348940674,1736881836131,-500.0,0.00010543,2]
[348940675,1736881836140,-500.0,0.00010543,2]
[348940676,1736881836149,-500.0,0.00010543,2]
[348940677,1736881836159,-500.0,0.00010543,2]
[348940678,1736881836168,-500.0,0.00010543,2]
[348940679,1736881836178,-500.0,0.00010543,2]
[348940680,1736881836187,-500.0,0.00010543,2]
[348940681,1736881836197,-500.0,0.00010543,2]
[348940682,1736881836206,-500.0,0.00010543,2]
[348940683,1736881836215,-500.0,0.00010543,2]
[348940684,1736881836225,-500.0,0.00010543,2]
[348940685,1736881836234,-500.0,0.00010543,2]
[348940686,1736881836244,-500.0,0.00010543,2]
[348940687,1736881836253,-500.0,0.00010543,2]
[348940688,1736881836262,-500.0,0.00010543,2]
[348940689,1736881836271,-516.37,0.00010543,2]
[348940690,1736881836280,-500.0,0.00010543,2]
[348940691,1736881836290,-639.67,0.00010543,2]
[348940692,1736881836299,-500.0,0.00010543,2]
[348940693,1736881836309,-505.80929571,0.00010543,2]
[348940694,1736881836320,-508.14541794,0.00010543,2]
[348940695,1736881836329,-504.87318543,0.00010543,2]
[348940696,1736881836339,-500.0,0.00010543,2]
[348940697,1736881836350,-500.0,0.00010543,2]
[348940698,1736881836362,-500.0,0.00010543,2]
[348940699,1736881836372,-501.8622855,0.00010543,2]
[348940700,1736881836381,-500.0,0.00010543,2]
[348940701,1736881836390,-500.0,0.00010543,2]
[348940702,1736881836399,-500.0,0.00010543,2]
[348940703,1736881836411,-500.0,0.00010543,2]
[348940704,1736881836420,-500.0,0.00010543,2]
[348940705,1736881836429,-500.0,0.00010543,2]
[348940706,1736881836441,-500.0,0.00010543,2]
[348940707,1736881836451,-500.0,0.00010543,2]
[348940708,1736881836461,-502.16021359,0.00010543,2]
[348940709,1736881836471,-500.0,0.00010543,2]
[348940710,1736881836481,-500.0,0.00010543,2]
[348940711,1736881836490,-354.09213963,0.00010543,2]
[348940712,1736881836499,-500.0,0.00010543,2]
[348940713,1736881836509,-500.0,0.00010543,2]
[348940714,1736881836519,-500.0,0.00010543,2]
[348940715,1736881836528,-500.0,0.00010543,2]
[348940716,1736881836538,-500.0,0.00010543,2]
[348940717,1736881836547,-500.0,0.00010543,2]
[348940718,1736881836556,-500.0,0.00010543,2]
[348940719,1736881836566,-500.0,0.00010543,2]
[348940720,1736881836575,-500.0,0.00010543,2]
[348940721,1736881836584,-500.0,0.00010543,2]
[348940722,1736881836594,-509.16131839,0.00010543,2]
[348940723,1736881836603,-500.0,0.00010543,2]
[348940724,1736881836612,-500.0,0.00010543,2]
[348940725,1736881836622,-500.0,0.00010543,2]
[348940726,1736881836631,-500.0,0.00010543,2]
[348940727,1736881836640,-332.2963978,0.00010543,2]
[348940728,1736881836650,-500.0,0.00010543,2]
[348940729,1736881836659,-500.0,0.00010543,2]
[348940730,1736881836669,-500.90901328,0.00010543,2]
[348940731,1736881836678,-500.37600263,0.00010543,2]
[348940732,1736881836688,-500.0,0.00010543,2]
[348940733,1736881836697,-500.0,0.00010543,2]
[348940734,1736881836708,-507.46216314,0.00010543,2]
[348940735,1736881836717,-500.0,0.00010543,2]
[348940736,1736881836726,-501.06448324,0.00010543,2]
[348940737,1736881836736,-500.0,0.00010543,2]
[348940738,1736881836746,-500.0,0.00010543,2]
[348940739,1736881836756,-505.27504807,0.00010543,2]
[348940740,1736881836765,-528.97972028,0.00010543,2]
[348940741,1736881836774,-500.0,0.00010543,2]
[348940742,1736881836784,-505.8534047,0.00010543,2]
[348940743,1736881836793,-621.68,0.00010543,2]
[348940744,1736881836803,-500.0,0.00010543,2]
[348940745,1736881836813,-500.0,0.00010543,2]
[348940746,1736881836823,-156.14882921,0.00010543,2]
[348940747,1736881836833,-500.0,0.00010543,2]
[348940748,1736881836844,-500.0,0.00010543,2]
[348940749,1736881836854,-500.0,0.00010543,2]
[348940750,1736881836863,-500.0,0.00010543,2]
[348940751,1736881836873,-500.0,0.00010543,2]
[348940752,1736881836883,-500.0,0.00010543,2]
[348940753,1736881836894,-500.0,0.00010543,2]
[348940754,1736881836903,-501.60986721,0.00010543,2]
[348940755,1736881836913,-501.03422384,0.00010543,2]
[348940756,1736881836923,-501.3326097,0.00010543,2]
[348940757,1736881836934,-500.0,0.00010543,2]
[348940758,1736881836943,-500.0,0.00010543,2]
[348940759,1736881836953,-503.19875617,0.00010543,2]
[348940760,1736881836964,-501.58545417,0.00010543,2]
[348940761,1736881836973,-500.0,0.00010543,2]
[348940762,1736881836983,-500.0,0.00010543,2]
[348940763,1736881836992,-500.0,0.00010543,2]
[348940764,1736881837001,-315.77665037,0.00010543,2]
[348940765,1736881837010,-500.0,0.00010543,2]
[348940766,1736881837020,-577.33550803,0.00010543,2]
[348940767,1736881837030,-500.0,0.00010543,2]
[348940768,1736881837039,-500.0,0.00010543,2]
[348940769,1736881837049,-500.0,0.00010543,2]
[348940770,1736881837059,-502.52562453,0.00010543,2]
[348940771,1736881837069,-500.0,0.00010543,2]
[348940772,1736881837078,-500.0,0.00010543,2]
[348940773,1736881837088,-501.71426728,0.00010543,2]
[348940774,1736881837098,-500.0,0.00010543,2]
[348940775,1736881837108,-500.62564464,0.00010543,2]
[348940776,1736881837118,-502.82478419,0.00010543,2]
[348940777,1736881837127,-500.0,0.00010543,2]
[348940778,1736881837136,-506.03662881,0.00010543,2]
[348940779,1736881837146,-342.64499131,0.00010543,2]
[348940780,1736881837155,-500.0,0.00010543,2]
[348940781,1736881837165,-558.42365767,0.00010543,2]
[348940782,1736881837174,-503.00019115,0.00010543,2]
[348940783,1736881837183,-502.70452057,0.00010543,2]
[348940784,1736881837192,-500.0,0.00010543,2]
[348940785,1736881837201,-500.0,0.00010543,2]
[348940786,1736881837214,-500.0,0.00010543,2]
[348940787,1736881837223,-500.0,0.00010543,2]
[348940788,1736881837234,-500.0,0.00010543,2]
[348940789,1736881837243,-500.0,0.00010543,2]
[348940790,1736881837253,-500.0,0.00010543,2]
[348940791,1736881837262,-194.24215951,0.00010543,2]
[348940792,1736881837272,-501.85791595,0.00010543,2]
[348940793,1736881837281,-500.0,0.00010543,2]
[348940794,1736881837292,-503.11844069,0.00010543,2]
[348940795,1736881837302,-500.0,0.00010543,2]
[348940796,1736881837311,-500.0,0.00010543,2]
[348940797,1736881837321,-500.0,0.00010543,2]
[348940798,1736881837330,-500.0,0.00010543,2]
[348940799,1736881837340,-500.0,0.00010543,2]
[348940800,1736881837350,-500.0,0.00010543,2]
[348940801,1736881837364,-503.00147428,0.00010543,2]
[348940802,1736881837374,-500.0,0.00010543,2]
[348940803,1736881837384,-500.0,0.00010543,2]
[348940804,1736881837393,-500.0,0.00010543,2]
[348940805,1736881837404,-500.0,0.00010543,2]
[348940806,1736881837414,-500.0,0.00010543,2]
[348940807,1736881837423,-500.0,0.00010543,2]
[348940808,1736881837435,-500.0,0.00010543,2]
[348940809,1736881837445,-738.91,0.00010543,2]
[348940810,1736881837455,-521.68533043,0.00010543,2]
[348940811,1736881837465,-500.0,0.00010543,2]
[348940812,1736881837475,-502.84964111,0.00010543,2]
[348940813,1736881837484,-500.0,0.00010543,2]
[348940814,1736881837494,-500.0,0.00010543,2]
[348940815,1736881837504,-500.0,0.00010543,2]
[348940816,1736881837514,-500.0,0.00010543,2]
[348940817,1736881837524,-500.0,0.00010543,2]
[348940818,1736881837534,-503.29714442,0.00010543,2]
[348940819,1736881837543,-500.0,0.00010543,2]
[348940822,1736881837553,-501.53203027,0.00010543,2]
[348940823,1736881837563,-500.0,0.00010543,2]
[348940824,1736881837573,-500.0,0.00010543,2]
[348940825,1736881837582,-500.0,0.00010543,2]
[348940826,1736881837592,-172.26584699,0.00010543,2]
[348940827,1736881837602,-500.0,0.00010543,2]
[348940828,1736881837612,-500.0,0.00010543,2]
[348940829,1736881837621,-500.0,0.00010543,2]
[348940830,1736881837631,-500.0,0.00010543,2]
[348940831,1736881837641,-500.0,0.00010543,2]
[348940832,1736881837650,-531.36678343,0.00010543,2]
[348940833,1736881837659,-500.0,0.00010543,2]
[348940834,1736881837670,-500.0,0.00010543,2]
[348940835,1736881837679,-500.0,0.00010543,2]
[348940836,1736881837688,-396.66000026,0.00010543,2]
[348940837,1736881837700,-500.0,0.00010543,2]
[348940838,1736881837711,-500.0,0.00010543,2]
[348940839,1736881837721,-367.89434997,0.00010543,2]
[348940840,1736881837731,-500.0,0.00010543,2]
[348940841,1736881837741,-500.0,0.00010543,2]
[348940842,1736881837751,-503.24986897,0.00010543,2]
[348940843,1736881837761,-500.0,0.00010543,2]
[348940844,1736881837771,-500.0,0.00010543,2]
[348940845,1736881837780,-503.20064883,0.00010543,2]
[348940846,1736881837789,-500.0,0.00010543,2]
[348940847,1736881837799,-504.67577299,0.00010543,2]
[348940848,1736881837808,-305.03924315,0.00010543,2]
[348940849,1736881837818,-500.0,0.00010543,2]
[348940850,1736881837827,-500.0,0.00010543,2]
[348940851,1736881837836,-500.0,0.00010543,2]
[348940852,1736881837846,-500.0,0.00010543,2]
[348940853,1736881837855,-500.0,0.00010543,2]
[348940854,1736881837865,-3137.36,0.00010543,2]
[348940855,1736881837874,-500.0,0.00010543,2]
[348940856,1736881837883,-543.8336091,0.00010543,2]
[348940857,1736881837896,-500.0,0.00010543,2]
[348940858,1736881837906,-500.0,0.00010543,2]
[348940859,1736881837916,-500.0,0.00010543,2]
[348940860,1736881837926,-500.0,0.00010543,2]
[348940861,1736881837936,-500.0,0.00010543,2]
[348940862,1736881837945,-500.0,0.00010543,2]
[348940863,1736881837955,-150.91,0.00010543,2]
[348940865,1736881837964,-586.94550881,0.00010543,2]
[348940867,1736881837974,-500.0,0.00010543,2]
[348940868,1736881837984,-532.63,0.00010543,2]
[348940869,1736881837993,-500.0,0.00010543,2]
[348940870,1736881838002,-500.0,0.00010543,2]
[348940871,1736881838011,-503.59727648,0.00010543,2]
[348940872,1736881838021,-500.0,0.00010543,2]
[348940873,1736881838030,-500.0,0.00010543,2]
[348940874,1736881838039,-500.0,0.00010543,2]
[348940875,1736881838049,-500.0,0.00010543,2]
[348940876,1736881838059,-2211.7,0.00010543,2]
[348940877,1736881838068,-500.0,0.00010543,2]
[348940878,1736881838078,-356.24718885,0.00010543,2]
[348940879,1736881838087,-185.10529417,0.00010543,2]
[348940881,1736881838096,-220.67863504,0.00010543,2]
[348940883,1736881838106,-500.0,0.00010543,2]
[348940885,1736881838115,-500.0,0.00010544,2]
[348940887,1736881838124,-500.0,0.00010544,2]
[348940889,1736881838134,-500.0,0.00010544,2]
[348940891,1736881838143,-612.31,0.00010544,2]
[348940893,1736881838153,-540.6,0.00010544,2]
[348940895,1736881838162,-679.85,0.00010544,2]
[348940897,1736881838172,-605.7,0.00010544,2]
[348940899,1736881838183,-93617.40442703,0.00010544,2]
[348940901,1736881838192,-971.07,0.00010547,2]
[348940903,1736881838202,-1027.23,0.00010547,2]
[348940905,1736881838211,-2411.91,0.00010547,2]
[348940907,1736881838221,-285.34496608,0.00010583,2]
[348940909,1736881838230,-1980.0,0.00010589,2]
[348940911,1736881838240,-150.57,0.00010637,2]
[348940913,1736881838249,-151.19,0.00010637,2]
[348940915,1736881838260,-151.09,0.00010637,2]
[348940917,1736881838269,-150.2,0.00010637,2]
[348940919,1736881838278,-285.34496608,0.00010653,2]
[348940921,1736881838288,-152.22,0.00010661,2]
[348940923,1736881838298,-211.0,0.00010707,2]
[348940925,1736881838308,-212.67,0.00010707,2]
[348940927,1736881838317,-285.34496608,0.00010723,2]
[348940929,1736881838327,-151.55,0.00010734,2]
[348940931,1736881838337,-150.52,0.00010734,2]
[348940933,1736881838347,-150.68,0.00010734,2]
[348940935,1736881838358,-152.16,0.00010734,2]
[348940937,1736881838371,-150.88,0.00010734,2]
[348940939,1736881838390,-152.76,0.00010734,2]
[348940941,1736881838403,-151.51,0.00010734,2]
[348940942,1736881838416,-150.4,0.00010734,2]
[348940944,1736881838431,-2393.957,0.00010737,2]
[348940946,1736881838442,-194.072,0.00010741,2]
[348940949,1736881838452,-531.59858916,0.00010746,2]
[348940951,1736881838463,-152.1,0.00010753,2]
[348940953,1736881838473,-201.0,0.0001076,2]
[348940955,1736881838482,-500.0,0.00010782,2]
[348940957,1736881838492,-510.95,0.00010782,2]
[348940958,1736881838502,-500.0,0.00010782,2]
[348940960,1736881838512,-500.0,0.00010782,2]
[348940962,1736881838522,-500.0,0.00010782,2]
[348940964,1736881838531,-500.0,0.00010782,2]
[348940966,1736881838540,-500.0,0.00010782,2]
[348940968,1736881838550,-500.0,0.00010782,2]
[348940971,1736881838559,-500.0,0.00010782,2]
[348940973,1736881838569,-530.64,0.00010782,2]
[348940974,1736881838579,-500.0,0.00010782,2]
[348940977,1736881838589,-500.0,0.00010782,2]
[348940978,1736881838598,-500.0,0.00010782,2]
[348940980,1736881838607,-500.0,0.00010782,2]
[348940982,1736881838616,-500.0,0.00010782,2]
[348940985,1736881838626,-500.0,0.00010782,2]
[348940986,1736881838635,-500.0,0.00010782,2]
[348940988,1736881838644,-500.0,0.00010782,2]
[348940990,1736881838653,-500.0,0.00010782,2]
[348941010,1736881838817,-500.0,0.00010782,2]
[348941012,1736881838834,-500.0,0.00010782,2]
[348941014,1736881838843,-500.0,0.00010782,2]
[348941016,1736881838852,-500.0,0.00010782,2]
[348941018,1736881838862,-547.99,0.00010782,2]
[348941020,1736881838871,-500.0,0.00010782,2]
[348941022,1736881838881,-500.0,0.00010782,2]
[348941024,1736881838892,-559.05,0.00010782,2]
[348941026,1736881838902,-500.0,0.00010782,2]
[348941028,1736881838911,-500.0,0.00010782,2]
[348941030,1736881838920,-500.0,0.00010782,2]
[348941032,1736881838929,-500.0,0.00010782,2]
[348941034,1736881838940,-500.0,0.00010782,2]
[348941036,1736881838949,-590.08851442,0.00010782,2]
[348941038,1736881838959,-348.85154702,0.00010782,2]
[348941040,1736881838968,-500.0,0.00010782,2]
[348941042,1736881838977,-500.0,0.00010782,2]
[348941044,1736881838987,-500.0,0.00010782,2]
[348941046,1736881838996,-521.46,0.00010782,2]
[348941048,1736881839005,-500.0,0.00010782,2]
[348941050,1736881839014,-500.0,0.00010782,2]
[348941052,1736881839023,-500.0,0.00010782,2]
[348941054,1736881839032,-502.61,0.00010782,2]
[348941056,1736881839042,-500.0,0.00010782,2]
[348941058,1736881839052,-560.47,0.00010782,2]
[348941060,1736881839062,-500.0,0.00010782,2]
[348941062,1736881839071,-500.0,0.00010782,2]
[348941064,1736881839081,-646.88,0.00010782,2]
[348941066,1736881839090,-500.0,0.00010782,2]
[348941068,1736881839099,-285.34496608,0.00010793,2]
[348941070,1736881839109,-300.0,0.000108,3]
[348941072,1736881839118,-459.785368,0.00010808,2]
[348941074,1736881839127,-488.134794,0.00010808,2]
[348941076,1736881839137,-158.576598,0.00010808,2]
[348941078,1736881839146,-2555.84,0.00010808,2]
[348941080,1736881839156,-158.573318,0.00010808,2]
[348941082,1736881839165,-913.47,0.00010808,2]
[348941084,1736881839175,-500.0,0.00010808,2]
[348941086,1736881839185,-2115.75,0.00010808,2]
[348941088,1736881839194,-500.0,0.00010808,2]
[348941090,1736881839204,-527.27758482,0.00010808,2]
[348941092,1736881839215,-500.0,0.00010808,2]
[348941093,1736881839224,-2318.45,0.00010808,2]
[348941096,1736881839235,-500.0,0.00010808,2]
[348941098,1736881839245,-515.02626342,0.00010808,2]
[348941100,1736881839255,-641.58,0.00010808,2]
[348941101,1736881839265,-821.66,0.00010808,2]
[348941103,1736881839274,-500.0,0.00010808,2]
[348941105,1736881839284,-500.0,0.00010809,2]
[348941107,1736881839295,-579.02,0.00010809,2]
[348941109,1736881839304,-780.5,0.00010809,2]
[348941111,1736881839314,-578.24,0.00010809,2]
[348941113,1736881839323,-1807.21,0.00010809,2]
[348941116,1736881839333,-691.18,0.00010809,2]
[348941118,1736881839343,-500.0,0.00010809,2]
[348941120,1736881839353,-500.0,0.00010809,2]
[348941122,1736881839368,-2002.8,0.00010809,2]
[348941124,1736881839377,-500.0,0.00010809,2]
[348941126,1736881839387,-500.0,0.00010809,2]
[348941127,1736881839397,-1282.75,0.00010809,2]
[348941129,1736881839407,-500.0,0.00010809,2]
[348941131,1736881839416,-2384.22,0.00010809,2]
[348941133,1736881839425,-500.0,0.00010809,2]
[348941136,1736881839436,-971.7,0.00010809,2]
[348941138,1736881839445,-516.67357895,0.00010809,2]
[348941139,1736881839455,-802.97,0.00010809,2]
[348941141,1736881839465,-500.0,0.00010809,2]
[348941143,1736881839475,-994.67,0.00010809,2]
[348941145,1736881839484,-786.05,0.00010809,2]
[348941147,1736881839494,-1382.24,0.00010809,2]
[348941149,1736881839503,-927.07,0.00010809,2]
[348941151,1736881839512,-2929.53,0.00010809,2]
[348941153,1736881839522,-1060.93,0.00010809,2]
[348941155,1736881839531,-1152.51,0.00010809,2]
[348941157,1736881839540,-988.39,0.00010809,2]
[348941159,1736881839550,-570.01110534,0.00010809,2]
[348941161,1736881839559,-555.11,0.00010809,2]
[348941163,1736881839568,-500.0,0.00010809,2]
[348941165,1736881839578,-580.47,0.00010809,2]
[348941167,1736881839587,-513.6,0.00010809,2]
[348941169,1736881839597,-571.15,0.00010809,2]
[348941171,1736881839606,-1513.66,0.00010809,2]
[348941174,1736881839616,-5065.36,0.0001081,2]
[348941177,1736881839625,-707.25,0.0001081,2]
[348941180,1736881839635,-500.0,0.0001081,2]
[348941183,1736881839644,-1366.23,0.0001081,2]
[348941185,1736881839654,-500.0,0.0001081,2]
[348941186,1736881839663,-577.48,0.0001081,2]
[348941187,1736881839673,-729.17,0.0001081,2]
[348941188,1736881839682,-1006.09,0.0001081,2]
[348941189,1736881839692,-500.0,0.0001081,2]
[348941191,1736881839702,-500.0,0.0001081,2]
[348941192,1736881839712,-1513.93,0.0001081,2]
[348941193,1736881839721,-614.1,0.00010816,2]
[348941194,1736881839731,-500.0,0.00010816,2]
[348941195,1736881839740,-547.35,0.00010816,2]
[348941196,1736881839749,-609.87,0.00010816,2]
[348941197,1736881839759,-500.0,0.00010816,2]
[348941198,1736881839768,-953.99,0.00010816,2]
[348941199,1736881839777,-709.84,0.00010816,2]
[348941200,1736881839787,-500.0,0.00010816,2]
[348941201,1736881839796,-4285.97,0.00010816,2]
[348941202,1736881839805,-500.0,0.00010816,2]
[348941203,1736881839815,-681.82,0.00010816,2]
[348941204,1736881839824,-778.72,0.00010816,2]
[348941205,1736881839834,-580.45,0.00010816,2]
[348941206,1736881839843,-1211.06,0.00010816,2]
[348941207,1736881839852,-500.0,0.00010816,2]
[348941208,1736881839862,-702.73,0.00010816,2]
[348941209,1736881839871,-1221.99,0.00010816,2]
[348941210,1736881839881,-1582.66,0.00010816,2]
[348941211,1736881839892,-500.0,0.00010816,2]
[348941212,1736881839902,-1166.93,0.00010816,2]
[348941213,1736881839912,-2147.06,0.00010816,2]
[348941214,1736881839921,-718.96,0.00010816,2]
[348941215,1736881839931,-2000.43,0.00010816,2]
[348941216,1736881839940,-1716.4,0.00010816,2]
[348941217,1736881839950,-520.78,0.00010816,2]
[348941218,1736881839960,-1068.99,0.00010816,2]
[348941219,1736881839969,-500.0,0.00010816,2]
[348941220,1736881839978,-1492.01,0.00010816,2]
[348941221,1736881839988,-707.48,0.00010816,2]
[348941222,1736881839997,-994.28,0.00010816,2]
[348941223,1736881840007,-1266.69,0.00010816,2]
[348941224,1736881840017,-1001.34,0.00010816,2]
[348941225,1736881840027,-500.0,0.00010816,2]
[348941226,1736881840036,-500.0,0.00010817,2]
[348941227,1736881840048,-507.09776436,0.00010817,2]
[348941228,1736881840057,-500.0,0.00010817,2]
[348941229,1736881840067,-590.91769873,0.00010817,2]
[348941230,1736881840077,-500.0,0.00010817,2]
[348941231,1736881840087,-500.0,0.00010817,2]
[348941232,1736881840097,-500.0,0.00010817,2]
[348941233,1736881840107,-500.0,0.00010817,2]
[348941234,1736881840117,-500.0,0.00010817,2]
[348941235,1736881840126,-500.0,0.00010817,2]
[348941236,1736881840136,-500.0,0.00010817,2]
[348941237,1736881840146,-500.0,0.00010817,2]
[348941238,1736881840156,-500.0,0.00010817,2]
[348941239,1736881840166,-500.0,0.00010817,2]
[348941240,1736881840179,-500.0,0.00010817,2]
[348941241,1736881840188,-500.0,0.00010817,2]
[348941242,1736881840198,-500.0,0.00010817,2]
[348941243,1736881840209,-500.0,0.00010817,2]
[348941244,1736881840218,-500.0,0.00010817,2]
[348941245,1736881840228,-500.0,0.00010817,2]
[348941246,1736881840238,-500.0,0.00010817,2]
[348941247,1736881840247,-500.0,0.00010817,2]
[348941248,1736881840257,-500.0,0.00010817,2]
[348941249,1736881840266,-500.0,0.00010817,2]
[348941250,1736881840276,-505.36669697,0.00010817,2]
[348941251,1736881840286,-500.0,0.00010817,2]
[348941252,1736881840297,-504.57904756,0.00010817,2]
[348941253,1736881840307,-501.17014216,0.00010817,2]
[348941254,1736881840318,-508.01588243,0.00010817,2]
[348941256,1736881840327,-505.71240962,0.00010817,2]
[348941258,1736881840337,-507.23790212,0.00010817,2]
[348941260,1736881840347,-500.0,0.00010817,2]
[348941262,1736881840356,-505.45611818,0.00010817,2]
[348941264,1736881840369,-500.0,0.00010817,2]
[348941266,1736881840378,-500.0,0.00010817,2]
[348941268,1736881840388,-511.71171152,0.00010817,2]
[348941270,1736881840397,-500.0,0.00010817,2]
[348941272,1736881840410,-500.0,0.00010817,2]
[348941274,1736881840419,-500.0,0.00010817,2]
[348941276,1736881840429,-501.10502491,0.00010817,2]
[348941278,1736881840438,-536.21,0.00010817,2]
[348941280,1736881840450,-556.87,0.00010817,2]
[348941282,1736881840460,-532.79,0.00010817,2]
[348941284,1736881840470,-500.0,0.00010817,2]